[Event "48th Continental Open"]
[Site "Sturbridge, MA"]
[Date "2018.08.17"]
[Round "4.11"]
[White "Otchiyev, Arslan"]
[Black "Poliannikov, Danila"]
[Result "1/2-1/2"]
[ECO "C82"]
[WhiteElo "2333"]
[BlackElo "1994"]
[PlyCount "55"]
[EventDate "2018.08.??"]
[EventType "swiss"]
[EventRounds "9"]
[EventCountry "USA"]
[TimeControl "6000+10"]
[WhiteClock "0:49:23"]
[BlackClock "1:12:02"]

1. e4 {[%emt 0:00:10]} e5 {[%emt 0:00:20]} 2. Nf3 {[%emt 0:00:12]} Nc6 {
[%emt 0:00:16]} 3. Bb5 {[%emt 0:00:43]} a6 {[%emt 0:00:10]} 4. Ba4 {[%emt 0:00:
10]} Nf6 {[%emt 0:00:46]} 5. O-O {[%emt 0:00:11]} Nxe4 {[%emt 0:00:10]} 6. d4 {
[%emt 0:00:10]} b5 {[%emt 0:00:10]} 7. Bb3 {[%emt 0:00:10]} d5 {[%emt 0:00:39]}
8. dxe5 {[%emt 0:00:10]} Be6 {[%emt 0:00:10]} 9. c3 {[%emt 0:01:01]} Bc5 {
[%emt 0:00:11]} 10. Nbd2 {[%emt 0:00:10]} O-O {[%emt 0:00:11]} 11. Qe2 {
[%emt 0:00:39]} Bf5 {[%emt 0:01:18]} 12. a4 {[%emt 0:12:10]} Rb8 {[%emt 0:06:
03]} 13. axb5 {[%emt 0:00:11]} axb5 {[%emt 0:00:10]} 14. Ra6 {[%emt 0:03:13]}
Bb6 {[%emt 0:00:10]} 15. Nxe4 {[%emt 0:19:18]} dxe4 {[%emt 0:00:48]} 16. Ng5 {
[%emt 0:00:11]} Nxe5 {[%emt 0:01:03]} 17. Nxe4 {[%emt 0:01:13]} Qd3 {[%emt 0:
02:03]} 18. Qxd3 {[%emt 0:06:42]} Nxd3 {[%emt 0:00:18]} 19. Ng3 {[%emt 0:00:32]
} Bg6 {[%emt 0:01:27]} 20. Be3 {[%emt 0:05:26]} Bxe3 {[%emt 0:06:53]} 21. fxe3
{[%emt 0:00:11]} Nc5 {[%emt 0:03:50]} 22. Ra3 {[%emt 0:00:10]} b4 {[%emt 0:00:
36]} 23. cxb4 {[%emt 0:00:10]} Rxb4 {[%emt 0:00:10]} 24. Bd5 {[%emt 0:00:36]}
Rxb2 {[%emt 0:04:16]} 25. Rc3 {[%emt 0:00:10]} Ne6 {[%emt 0:00:10]} 26. Bxe6 {
[%emt 0:00:56]} fxe6 {[%emt 0:00:10]} 27. Rxf8+ {[%emt 0:00:11]} Kxf8 {[%emt 0:
00:10]} 28. Rxc7 {[%emt 0:00:11]} 1/2-1/2

[Event "48th Continental Open"]
[Site "Sturbridge, MA"]
[Date "2018.08.17"]
[Round "4.13"]
[White "Tang, Jason"]
[Black "Shanmugasundaram, Coimbatore"]
[Result "1/2-1/2"]
[ECO "B47"]
[WhiteElo "1908"]
[BlackElo "2147"]
[PlyCount "116"]
[EventDate "2018.08.??"]
[EventType "swiss"]
[EventRounds "9"]
[EventCountry "USA"]
[TimeControl "6000+10"]
[WhiteClock "0:01:41"]
[BlackClock "0:02:33"]

1. e4 {[%emt 0:00:10]} c5 {[%emt 0:00:28]} 2. Nf3 {[%emt 0:00:27]} e6 {[%emt 0:
00:23]} 3. d4 {[%emt 0:00:12]} cxd4 {[%emt 0:00:14]} 4. Nxd4 {[%emt 0:00:13]}
Nc6 {[%emt 0:00:16]} 5. Nc3 {[%emt 0:00:16]} Qc7 {[%emt 0:00:20]} 6. f4 {
[%emt 0:00:25]} a6 {[%emt 0:01:50]} 7. Nb3 {[%emt 0:02:26]} d6 {[%emt 0:01:58]}
8. Bd3 {[%emt 0:00:27]} b5 {[%emt 0:03:05]} 9. Qf3 {[%emt 0:02:26]} Bb7 {
[%emt 0:00:33]} 10. O-O {[%emt 0:01:15]} Nf6 {[%emt 0:02:12]} 11. Be3 {[%emt 0:
03:38]} Be7 {[%emt 0:03:03]} 12. Rae1 {[%emt 0:07:31]} O-O {[%emt 0:05:25]} 13.
Kh1 {[%emt 0:08:48]} Nb4 {[%emt 0:12:56]} 14. Qh3 {[%emt 0:18:26]} e5 {[%emt 0:
08:00]} 15. a3 {[%emt 0:13:27]} Nxd3 {[%emt 0:04:20]} 16. cxd3 {[%emt 0:00:16]}
Bc8 {[%emt 0:10:17]} 17. Qf3 {[%emt 0:09:20]} Bg4 {[%emt 0:01:39]} 18. Qg3 {
[%emt 0:09:58]} Be6 {[%emt 0:00:31]} 19. Nd2 {[%emt 0:01:48]} Nh5 {[%emt 0:00:
46]} 20. Qf3 {[%emt 0:01:40]} Nxf4 {[%emt 0:00:23]} 21. Bxf4 {[%emt 0:00:13]}
exf4 {[%emt 0:00:14]} 22. Qxf4 {[%emt 0:00:30]} Bf6 {[%emt 0:10:09]} 23. Rc1 {
[%emt 0:05:05]} Qb6 {[%emt 0:01:06]} 24. Nf3 {[%emt 0:02:21]} h6 {[%emt 0:03:
16]} 25. Qd2 {[%emt 0:00:58]} b4 {[%emt 0:04:38]} 26. axb4 {[%emt 0:02:06]}
Qxb4 {[%emt 0:00:27]} 27. Nd5 {[%emt 0:01:07]} Qxb2 {[%emt 0:00:46]} 28. Rc2 {
[%emt 0:00:17]} Qb5 {[%emt 0:03:55]} 29. Nxf6+ {[%emt 0:01:08]} gxf6 {[%emt 0:
00:10]} 30. Nd4 {[%emt 0:07:09]} Qg5 {[%emt 0:00:16]} 31. Qf2 {[%emt 0:00:39]}
Rac8 {[%emt 0:02:25]} 32. Rxc8 {[%emt 0:00:00]} Rxc8 {[%emt 0:00:51]} 33. h4 {
[%emt 0:00:00]} Qe5 {[%emt 0:04:50]} 34. Nxe6 {[%emt 0:00:00]} Qxe6 {[%emt 0:
01:23]} 35. Qxf6 {[%emt 0:00:52]} a5 {[%emt 0:04:49]} 36. Qa1 {[%emt 0:00:00]}
Qe5 {[%emt 0:01:36]} 37. Qxe5 {[%emt 0:00:03]} dxe5 {[%emt 0:00:10]} 38. Ra1 {
[%emt 0:00:23]} Ra8 {[%emt 0:01:31]} 39. Ra4 {[%emt 0:00:11]} h5 {[%emt 0:02:
37]} 40. Kg1 {[%emt 0:00:18]} Kg7 {[%emt 0:01:03]} 41. Kf2 {[%emt 0:00:00]} f5
{[%emt 0:02:08]} 42. exf5 {[%emt 0:00:00]} Kf6 {[%emt 0:00:08]} 43. Ke3 {
[%emt 0:00:00]} Kxf5 {[%emt 0:00:12]} 44. g3 {[%emt 0:00:00]} Rg8 {[%emt 0:00:
00]} 45. Kf3 {[%emt 0:00:00]} Rd8 {[%emt 0:00:00]} 46. Ke2 {[%emt 0:00:18]} Ra8
{[%emt 0:00:00]} 47. Ke3 {[%emt 0:00:10]} Ra7 {[%emt 0:00:00]} 48. Kf3 {
[%emt 0:00:00]} Rd7 {[%emt 0:00:21]} 49. Ke3 {[%emt 0:00:13]} Rd5 {[%emt 0:00:
21]} 50. Ke2 {[%emt 0:00:43]} Rb5 {[%emt 0:00:00]} 51. Kf3 {[%emt 0:00:00]} Rd5
{[%emt 0:00:00]} 52. Ke3 {[%emt 0:00:00]} Rc5 {[%emt 0:00:05]} 53. Kf3 {
[%emt 0:00:07]} Rd5 {[%emt 0:00:00]} 54. Ke3 {[%emt 0:00:13]} Rb5 {[%emt 0:00:
00]} 55. Kf3 {[%emt 0:00:00]} Ke6 {[%emt 0:00:00]} 56. Ke3 {[%emt 0:00:58]} Kd5
{[%emt 0:00:00]} 57. g4 {[%emt 0:00:00]} hxg4 {[%emt 0:00:00]} 58. Rxg4 {
[%emt 0:00:00]} Rb8 {[%emt 0:00:00]} 1/2-1/2

[Event "48th Continental Open"]
[Site "Sturbridge, MA"]
[Date "2018.08.17"]
[Round "4.15"]
[White "Tian, Eddy"]
[Black "Bader, Jeremy"]
[Result "0-1"]
[ECO "B40"]
[WhiteElo "2121"]
[BlackElo "1845"]
[PlyCount "108"]
[EventDate "2018.08.??"]
[EventType "swiss"]
[EventRounds "9"]
[EventCountry "USA"]
[TimeControl "6000+10"]
[WhiteClock "0:00:14"]
[BlackClock "0:00:22"]

1. e4 {[%emt 0:00:10]} c5 {[%emt 0:00:26]} 2. Nf3 {[%emt 0:00:18]} e6 {[%emt 0:
00:14]} 3. d3 {[%emt 0:00:30]} Nc6 {[%emt 0:02:12]} 4. g3 {[%emt 0:00:28]} Qc7
{[%emt 0:02:18]} 5. Bg2 {[%emt 0:01:07]} Nf6 {[%emt 0:00:38]} 6. O-O {[%emt 0:
01:01]} Be7 {[%emt 0:00:55]} 7. Qe2 {[%emt 0:00:43]} d6 {[%emt 0:00:39]} 8. Nc3
{[%emt 0:03:26]} O-O {[%emt 0:01:28]} 9. h3 {[%emt 0:01:54]} Bd7 {[%emt 0:02:
02]} 10. Be3 {[%emt 0:01:44]} Rac8 {[%emt 0:04:41]} 11. a4 {[%emt 0:06:35]} a6
{[%emt 0:02:57]} 12. Nh2 {[%emt 0:04:52]} Nd4 {[%emt 0:01:09]} 13. Qd2 {
[%emt 0:01:27]} Rfd8 {[%emt 0:06:06]} 14. f4 {[%emt 0:02:19]} Bc6 {[%emt 0:05:
24]} 15. g4 {[%emt 0:04:56]} b5 {[%emt 0:07:23]} 16. axb5 {[%emt 0:11:25]} axb5
{[%emt 0:00:26]} 17. Ne2 {[%emt 0:02:10]} Nxe2+ {[%emt 0:02:47]} 18. Qxe2 {
[%emt 0:02:02]} Ra8 {[%emt 0:00:11]} 19. Rxa8 {[%emt 0:04:29]} Rxa8 {[%emt 0:
01:17]} 20. g5 {[%emt 0:01:40]} Nd7 {[%emt 0:03:16]} 21. f5 {[%emt 0:04:22]}
Bf8 {[%emt 0:05:01]} 22. fxe6 {[%emt 0:04:56]} fxe6 {[%emt 0:00:17]} 23. g6 {
[%emt 0:02:12]} hxg6 {[%emt 0:01:39]} 24. Qg4 {[%emt 0:02:00]} Re8 {[%emt 0:00:
38]} 25. Qxg6 {[%emt 0:01:24]} Ne5 {[%emt 0:00:18]} 26. Qg3 {[%emt 0:00:59]}
Re7 {[%emt 0:07:05]} 27. Bf4 {[%emt 0:02:01]} Rf7 {[%emt 0:04:13]} 28. Bxe5 {
[%emt 0:01:20]} Rxf1+ {[%emt 0:00:43]} 29. Bxf1 {[%emt 0:00:23]} dxe5 {[%emt 0:
00:14]} 30. Nf3 {[%emt 0:00:57]} Bd6 {[%emt 0:05:58]} 31. Ng5 {[%emt 0:01:00]}
Qe7 {[%emt 0:01:04]} 32. Be2 {[%emt 0:02:00]} Be8 {[%emt 0:02:57]} 33. Qh4 {
[%emt 0:10:54]} Qf6 {[%emt 0:01:56]} 34. Bh5 {[%emt 0:04:17]} Qh6 {[%emt 0:11:
22]} 35. Nxe6 {[%emt 0:07:54]} Qxh5 {[%emt 0:08:01]} 36. Qd8 {[%emt 0:00:46]}
Qg6+ {[%emt 0:00:22]} 37. Ng5 {[%emt 0:00:14]} Kf8 {[%emt 0:01:05]} 38. h4 {
[%emt 0:02:12]} Be7 {[%emt 0:00:23]} 39. Qd5 {[%emt 0:00:18]} Bxg5 {[%emt 0:00:
55]} 40. hxg5 {[%emt 0:00:11]} Qxg5+ {[%emt 0:00:17]} 41. Kf2 {[%emt 0:00:23]}
Qd2+ {[%emt 0:01:54]} 42. Kg3 {[%emt 0:02:21]} Qf4+ {[%emt 0:01:34]} 43. Kg2 {
[%emt 0:00:21]} Qg5+ {[%emt 0:02:42]} 44. Kh2 {[%emt 0:00:00]} Qe7 {[%emt 0:00:
03]} 45. c3 {[%emt 0:00:32]} Bd7 {[%emt 0:00:00]} 46. Qa8+ {[%emt 0:00:00]} Kf7
{[%emt 0:00:00]} 47. Qd5+ {[%emt 0:00:00]} Kg6 {[%emt 0:00:00]} 48. Kg3 {
[%emt 0:00:00]} Qg5+ {[%emt 0:00:56]} 49. Kf2 {[%emt 0:00:00]} Qd2+ {[%emt 0:
00:06]} 50. Kf3 {[%emt 0:00:21]} Qf4+ {[%emt 0:00:00]} 51. Kg2 {[%emt 0:00:18]}
Bg4 {[%emt 0:00:06]} 52. Qxc5 {[%emt 0:00:34]} Qf3+ 53. Kh2 Qh3+ 54. Kg1 Bf3
0-1

[Event "48th Continental Open"]
[Site "Sturbridge, MA"]
[Date "2018.08.17"]
[Round "4.17"]
[White "Yu, Alex"]
[Black "Riddell, John"]
[Result "1/2-1/2"]
[ECO "B43"]
[WhiteElo "1852"]
[BlackElo "2103"]
[PlyCount "136"]
[EventDate "2018.08.??"]
[EventType "swiss"]
[EventRounds "9"]
[EventCountry "USA"]
[TimeControl "6000+10"]
[WhiteClock "0:00:03"]
[BlackClock "0:02:52"]

1. e4 {[%emt 0:00:10]} c5 {[%emt 0:00:33]} 2. Nf3 {[%emt 0:00:21]} e6 {[%emt 0:
00:15]} 3. d4 {[%emt 0:00:17]} cxd4 {[%emt 0:00:11]} 4. Nxd4 {[%emt 0:00:20]}
a6 {[%emt 0:00:17]} 5. Nc3 {[%emt 0:01:07]} b5 {[%emt 0:00:24]} 6. Be3 {
[%emt 0:02:49]} Bb7 {[%emt 0:03:17]} 7. f3 {[%emt 0:02:44]} Qc7 {[%emt 0:01:32]
} 8. Qd2 {[%emt 0:05:18]} Nf6 {[%emt 0:01:01]} 9. g4 {[%emt 0:03:50]} b4 {
[%emt 0:05:28]} 10. Nce2 {[%emt 0:07:46]} e5 {[%emt 0:10:16]} 11. g5 {[%emt 0:
11:09]} Nxe4 {[%emt 0:04:21]} 12. fxe4 {[%emt 0:00:45]} Bxe4 {[%emt 0:00:27]}
13. Rg1 {[%emt 0:03:14]} exd4 {[%emt 0:00:26]} 14. Nxd4 {[%emt 0:01:39]} Nc6 {
[%emt 0:10:24]} 15. O-O-O {[%emt 0:07:30]} Nxd4 {[%emt 0:06:28]} 16. Bxd4 {
[%emt 0:00:14]} Bf5 {[%emt 0:27:30]} 17. Bd3 {[%emt 0:06:40]} Be6 {[%emt 0:00:
15]} 18. Kb1 {[%emt 0:08:00]} Bc5 {[%emt 0:07:58]} 19. Bxg7 {[%emt 0:05:27]}
Rg8 {[%emt 0:10:32]} 20. Bf6 {[%emt 0:00:54]} Bxg1 {[%emt 0:00:32]} 21. Rxg1 {
[%emt 0:00:17]} Qa5 {[%emt 0:03:02]} 22. b3 {[%emt 0:01:28]} Qc5 {[%emt 0:02:
49]} 23. Rd1 {[%emt 0:03:06]} Rg6 {[%emt 0:01:07]} 24. h4 {[%emt 0:05:48]} a5 {
[%emt 0:02:37]} 25. h5 {[%emt 0:02:10]} Rxf6 {[%emt 0:00:51]} 26. gxf6 {
[%emt 0:00:16]} Qxh5 {[%emt 0:01:10]} 27. Be4 {[%emt 0:03:28]} d5 {[%emt 0:00:
00]} 28. Rh1 {[%emt 0:01:55]} Qe5 {[%emt 0:00:00]} 29. Bxh7 {[%emt 0:01:06]}
Qxf6 {[%emt 0:00:00]} 30. Bd3 {[%emt 0:00:46]} O-O-O {[%emt 0:01:17]} 31. Qe3 {
[%emt 0:00:43]} d4 {[%emt 0:00:00]} 32. Ba6+ {[%emt 0:00:10]} Kc7 {[%emt 0:00:
00]} 33. Qg3+ {[%emt 0:00:32]} Kb6 {[%emt 0:00:00]} 34. Bd3 {[%emt 0:00:30]}
Bd5 {[%emt 0:00:00]} 35. Rf1 {[%emt 0:00:24]} Qd6 {[%emt 0:00:00]} 36. Qg7 {
[%emt 0:00:11]} Be6 {[%emt 0:00:49]} 37. Qg5 {[%emt 0:00:12]} Qd5 {[%emt 0:00:
17]} 38. Qf6 {[%emt 0:00:10]} Rd6 {[%emt 0:00:04]} 39. Qh8 {[%emt 0:00:10]} Qb7
{[%emt 0:00:17]} 40. Qh4 {[%emt 0:00:13]} Qc7 {[%emt 0:00:11]} 41. Rf4 {
[%emt 0:01:36]} a4 {[%emt 0:00:00]} 42. Rxd4 {[%emt 0:01:35]} Rxd4 {[%emt 0:00:
00]} 43. Qxd4+ {[%emt 0:00:16]} Qc5 {[%emt 0:00:00]} 44. Qd8+ {[%emt 0:01:04]}
Ka7 {[%emt 0:00:00]} 45. bxa4 {[%emt 0:04:38]} Qg1+ {[%emt 0:00:00]} 46. Kb2 {
[%emt 0:00:17]} Qg7+ {[%emt 0:00:02]} 47. Kc1 {[%emt 0:00:58]} Qg1+ {[%emt 0:
00:42]} 48. Kd2 {[%emt 0:01:03]} Qf2+ {[%emt 0:00:30]} 49. Be2 {[%emt 0:01:21]}
Qf4+ {[%emt 0:00:00]} 50. Kd1 {[%emt 0:01:39]} Bg4 {[%emt 0:00:00]} 51. Qe7+ {
[%emt 0:00:00]} Kb8 {[%emt 0:00:00]} 52. Bxg4 {[%emt 0:00:00]} Qxg4+ {[%emt 0:
00:11]} 53. Kd2 {[%emt 0:00:00]} Qd4+ {[%emt 0:00:16]} 54. Ke2 {[%emt 0:00:00]}
Qc4+ {[%emt 0:00:00]} 55. Kd2 {[%emt 0:00:00]} Qc3+ {[%emt 0:00:00]} 56. Kd1 {
[%emt 0:00:40]} Qd4+ {[%emt 0:00:00]} 57. Ke2 {[%emt 0:00:00]} Qc4+ {[%emt 0:
00:00]} 58. Ke1 {[%emt 0:00:16]} Qe6+ {[%emt 0:00:00]} 59. Qxe6 {[%emt 0:00:14]
} fxe6 {[%emt 0:00:00]} 60. Kd2 {[%emt 0:00:23]} Kb7 {[%emt 0:00:00]} 61. Kd3 {
[%emt 0:00:00]} Kb6 {[%emt 0:00:00]} 62. Kc4 {[%emt 0:00:28]} Ka5 {[%emt 0:00:
00]} 63. Kb3 {[%emt 0:00:00]} e5 {[%emt 0:00:00]} 64. a3 {[%emt 0:00:09]} bxa3
{[%emt 0:00:00]} 65. Kxa3 {[%emt 0:00:15]} e4 {[%emt 0:00:00]} 66. Kb3 {
[%emt 0:00:13]} e3 {[%emt 0:00:00]} 67. Kc3 {[%emt 0:00:15]} Kxa4 {[%emt 0:00:
04]} 68. Kd3 {[%emt 0:00:08]} Kb4 {[%emt 0:00:15]} 1/2-1/2

[Event "48th Continental Open"]
[Site "Sturbridge, MA"]
[Date "2018.08.17"]
[Round "4.18"]
[White "Falcao, Wesley"]
[Black "Luo, Terry"]
[Result "1/2-1/2"]
[ECO "A15"]
[WhiteElo "2148"]
[BlackElo "1793"]
[PlyCount "100"]
[EventDate "2018.08.??"]
[EventType "swiss"]
[EventRounds "9"]
[EventCountry "USA"]
[TimeControl "6000+10"]
[BlackClock "0:01:05"]

1. c4 {[%emt 0:00:10]} Nf6 {[%emt 0:00:21]} 2. g3 {[%emt 0:00:11]} g6 {[%emt 0:
00:11]} 3. Bg2 {[%emt 0:00:11]} Bg7 {[%emt 0:00:11]} 4. Nc3 {[%emt 0:00:11]}
O-O {[%emt 0:00:11]} 5. e3 {[%emt 0:04:11]} c6 {[%emt 0:02:48]} 6. Qb3 {
[%emt 0:07:37]} d6 {[%emt 0:04:19]} 7. Nge2 {[%emt 0:00:32]} e5 {[%emt 0:02:12]
} 8. h3 {[%emt 0:05:24]} Qc7 {[%emt 0:04:00]} 9. d3 {[%emt 0:09:50]} Nbd7 {
[%emt 0:02:37]} 10. O-O {[%emt 0:01:57]} Nc5 {[%emt 0:03:24]} 11. Qd1 {[%emt 0:
03:44]} a5 {[%emt 0:03:50]} 12. d4 {[%emt 0:03:29]} Ne6 {[%emt 0:01:02]} 13. f4
{[%emt 0:06:06]} Rd8 {[%emt 0:05:15]} 14. g4 {[%emt 0:00:47]} exd4 {[%emt 0:03:
15]} 15. exd4 {[%emt 0:00:10]} c5 {[%emt 0:03:22]} 16. g5 {[%emt 0:09:15]} Nh5
{[%emt 0:02:28]} 17. Nd5 {[%emt 0:00:11]} Qb8 {[%emt 0:01:17]} 18. Be3 {
[%emt 0:03:01]} Re8 {[%emt 0:12:57]} 19. Qd2 {[%emt 0:05:31]} b5 {[%emt 0:11:
46]} 20. cxb5 {[%emt 0:11:32]} Bb7 {[%emt 0:03:40]} 21. Kh2 {[%emt 0:04:07]}
Qa7 {[%emt 0:05:21]} 22. Rad1 {[%emt 0:06:43]} Rad8 {[%emt 0:06:52]} 23. Rf2 {
[%emt 0:02:13]} Qa8 {[%emt 0:10:33]} 24. Nb6 {[%emt 0:04:46]} Qa7 {[%emt 0:00:
15]} 25. Nc4 {[%emt 0:01:48]} Bxg2 {[%emt 0:00:56]} 26. Rxg2 {[%emt 0:00:45]}
Qb7 {[%emt 0:03:26]} 27. d5 {[%emt 0:06:58]} Nc7 {[%emt 0:00:50]} 28. a4 {
[%emt 0:00:23]} Re4 {[%emt 0:02:07]} 29. b3 {[%emt 0:00:28]} Qc8 {[%emt 0:01:
41]} 30. Nc3 {[%emt 0:02:01]} Bxc3 {[%emt 0:01:42]} 31. Qxc3 {[%emt 0:00:10]}
Nxf4 {[%emt 0:00:21]} 32. Bxf4 {[%emt 0:00:55]} Rxf4 {[%emt 0:00:10]} 33. b6 {
[%emt 0:00:00]} Na6 {[%emt 0:01:26]} 34. Nxa5 {[%emt 0:00:14]} Re8 {[%emt 0:00:
45]} 35. Re1 {[%emt 0:00:00]} Rxe1 {[%emt 0:00:11]} 36. Qxe1 {[%emt 0:00:00]}
Rf3 {[%emt 0:00:11]} 37. Rg3 {[%emt 0:00:00]} Rxg3 {[%emt 0:00:24]} 38. Qxg3 {
[%emt 0:00:13]} Qf5 {[%emt 0:00:10]} 39. Nc6 {[%emt 0:00:45]} Qc2+ {[%emt 0:00:
00]} 40. Kg1 {[%emt 0:00:00]} Qd1+ {[%emt 0:00:00]} 41. Kh2 {[%emt 0:00:00]}
Qc2+ {[%emt 0:00:00]} 42. Qg2 {[%emt 0:00:00]} Qxb3 {[%emt 0:00:00]} 43. Qe2 {
[%emt 0:00:00]} Qxa4 {[%emt 0:00:00]} 44. Qe3 {[%emt 0:00:00]} Qb5 {[%emt 0:00:
00]} 45. Ne7+ {[%emt 0:00:00]} Kf8 {[%emt 0:00:00]} 46. Nc8 {[%emt 0:00:00]}
Qd7 {[%emt 0:00:14]} 47. Qc3 {[%emt 0:00:00]} Kg8 {[%emt 0:01:17]} 48. Qa5 {
[%emt 0:01:24]} Qxc8 {[%emt 0:00:00]} 49. b7 {[%emt 0:00:13]} Qxb7 {[%emt 0:00:
00]} 50. Qd8+ {[%emt 0:00:14]} Kg7 {[%emt 0:00:00]} 1/2-1/2

[Event "48th Continental Open"]
[Site "Sturbridge, MA"]
[Date "2018.08.17"]
[Round "4.19"]
[White "Song, Alan"]
[Black "Padmanabhan, Karthik"]
[Result "0-1"]
[ECO "C78"]
[WhiteElo "2043"]
[BlackElo "1879"]
[PlyCount "98"]
[EventDate "2018.08.??"]
[EventType "swiss"]
[EventRounds "9"]
[EventCountry "USA"]
[TimeControl "6000+10"]
[WhiteClock "0:01:29"]
[BlackClock "0:00:08"]

1. e4 {[%emt 0:00:10]} e5 {[%emt 0:00:21]} 2. Nf3 {[%emt 0:00:10]} Nc6 {
[%emt 0:00:12]} 3. Bb5 {[%emt 0:00:23]} a6 {[%emt 0:00:16]} 4. Ba4 {[%emt 0:00:
16]} Nf6 {[%emt 0:00:17]} 5. O-O {[%emt 0:00:18]} b5 {[%emt 0:01:13]} 6. Bb3 {
[%emt 0:00:13]} Bc5 {[%emt 0:00:17]} 7. c3 {[%emt 0:01:05]} d6 {[%emt 0:00:20]}
8. a4 {[%emt 0:02:04]} Rb8 {[%emt 0:00:30]} 9. d4 {[%emt 0:02:12]} Bb6 {
[%emt 0:00:14]} 10. a5 {[%emt 0:03:26]} Ba7 {[%emt 0:00:24]} 11. h3 {[%emt 0:
02:41]} O-O {[%emt 0:01:59]} 12. d5 {[%emt 0:12:46]} Ne7 {[%emt 0:02:06]} 13.
Qe2 {[%emt 0:00:19]} Ng6 {[%emt 0:07:42]} 14. c4 {[%emt 0:00:27]} b4 {[%emt 0:
06:24]} 15. Be3 {[%emt 0:04:57]} Bxe3 {[%emt 0:01:55]} 16. Qxe3 {[%emt 0:00:18]
} Bd7 {[%emt 0:03:21]} 17. Nbd2 {[%emt 0:02:31]} Nf4 {[%emt 0:01:27]} 18. Ne1 {
[%emt 0:27:59]} N6h5 {[%emt 0:10:17]} 19. Bd1 {[%emt 0:03:36]} g6 {[%emt 0:15:
28]} 20. Bxh5 {[%emt 0:01:57]} Nxh5 {[%emt 0:01:45]} 21. Nd3 {[%emt 0:03:27]}
f5 {[%emt 0:07:10]} 22. Rfc1 {[%emt 0:05:39]} f4 {[%emt 0:03:49]} 23. Qe2 {
[%emt 0:02:39]} Nf6 {[%emt 0:04:36]} 24. c5 {[%emt 0:00:50]} g5 {[%emt 0:06:31]
} 25. cxd6 {[%emt 0:06:09]} cxd6 {[%emt 0:00:31]} 26. f3 {[%emt 0:00:48]} h5 {
[%emt 0:01:58]} 27. Nc4 {[%emt 0:00:58]} Bc8 {[%emt 0:01:19]} 28. Nb6 {[%emt 0:
01:31]} g4 {[%emt 0:05:27]} 29. Nxc8 {[%emt 0:00:35]} Rxc8 {[%emt 0:00:27]} 30.
Rxc8 {[%emt 0:01:45]} Qxc8 {[%emt 0:00:10]} 31. Rc1 {[%emt 0:00:59]} Qb7 {
[%emt 0:01:51]} 32. Kh2 {[%emt 0:03:57]} g3+ {[%emt 0:01:38]} 33. Kh1 {[%emt 0:
00:13]} Rc8 {[%emt 0:00:46]} 34. Qd1 {[%emt 0:08:14]} Rxc1 {[%emt 0:00:58]} 35.
Nxc1 {[%emt 0:00:10]} Qc7 {[%emt 0:00:58]} 36. Ne2 {[%emt 0:00:00]} Nd7 {
[%emt 0:07:59]} 37. Qc1 {[%emt 0:00:16]} Nc5 {[%emt 0:00:49]} 38. Qc2 {[%emt 0:
00:10]} Qxa5 {[%emt 0:00:51]} 39. Ng1 {[%emt 0:00:00]} Qb5 {[%emt 0:02:03]} 40.
Ne2 {[%emt 0:00:23]} Kf7 {[%emt 0:00:00]} 41. Kg1 {[%emt 0:00:00]} Qd3 {
[%emt 0:00:00]} 42. Qxd3 {[%emt 0:00:00]} Nxd3 {[%emt 0:00:00]} 43. b3 {
[%emt 0:00:00]} Ke7 {[%emt 0:00:00]} 44. Kf1 {[%emt 0:00:18]} h4 {[%emt 0:00:
40]} 45. Ng1 {[%emt 0:00:18]} Nc1 {[%emt 0:00:40]} 46. Ke1 {[%emt 0:00:27]}
Nxb3 {[%emt 0:00:00]} 47. Ne2 {[%emt 0:00:00]} a5 {[%emt 0:00:05]} 48. Kd1 {
[%emt 0:00:00]} a4 {[%emt 0:00:19]} 49. Kc2 {[%emt 0:00:00]} Nd4+ {[%emt 0:00:
09]} 0-1

[Event "48th Continental Open"]
[Site "Sturbridge, MA"]
[Date "2018.08.17"]
[Round "4.20"]
[White "Barash, Anton"]
[Black "Belous, Nicholas"]
[Result "1/2-1/2"]
[ECO "C11"]
[WhiteElo "1972"]
[BlackElo "1852"]
[PlyCount "46"]
[EventDate "2018.08.??"]
[EventType "swiss"]
[EventRounds "9"]
[EventCountry "USA"]
[TimeControl "6000+10"]
[WhiteClock "0:48:06"]
[BlackClock "0:19:38"]

1. e4 {[%emt 0:00:10]} e6 2. d4 {[%emt 0:00:11]} d5 {[%emt 0:00:31]} 3. Nc3 {
[%emt 0:00:11]} Nf6 {[%emt 0:00:11]} 4. Bg5 {[%emt 0:00:11]} dxe4 {[%emt 0:00:
11]} 5. f3 {[%emt 0:00:11]} e3 {[%emt 0:01:59]} 6. Bxe3 {[%emt 0:01:13]} Bb4 {
[%emt 0:00:13]} 7. Bc4 {[%emt 0:00:11]} Bxc3+ {[%emt 0:04:44]} 8. bxc3 {
[%emt 0:00:14]} Nd5 {[%emt 0:00:37]} 9. Bxd5 {[%emt 0:05:44]} exd5 {[%emt 0:00:
38]} 10. Ne2 {[%emt 0:00:25]} O-O {[%emt 0:01:10]} 11. O-O {[%emt 0:00:30]} Nd7
{[%emt 0:03:16]} 12. Qd3 {[%emt 0:05:40]} Nb6 {[%emt 0:01:15]} 13. Rae1 {
[%emt 0:07:21]} Nc4 {[%emt 0:05:03]} 14. Bc1 {[%emt 0:00:59]} c6 {[%emt 0:03:
12]} 15. Ng3 {[%emt 0:03:41]} Bd7 {[%emt 0:28:15]} 16. Re2 {[%emt 0:05:49]} Re8
{[%emt 0:03:20]} 17. Rfe1 {[%emt 0:00:11]} Rxe2 {[%emt 0:02:19]} 18. Qxe2 {
[%emt 0:00:10]} Qf8 {[%emt 0:02:37]} 19. Nh5 {[%emt 0:20:38]} Re8 {[%emt 0:04:
23]} 20. Qf2 {[%emt 0:00:11]} f6 {[%emt 0:08:33]} 21. Rxe8 {[%emt 0:00:11]}
Qxe8 {[%emt 0:00:11]} 22. Nf4 {[%emt 0:01:31]} Bf5 {[%emt 0:05:18]} 23. Nd3 {
[%emt 0:00:11]} Qe7 {[%emt 0:06:26]} 1/2-1/2

[Event "48th Continental Open"]
[Site "Sturbridge, MA"]
[Date "2018.08.17"]
[Round "4.21"]
[White "Slade, Theo"]
[Black "Zhao, Jeffrey Renfei"]
[Result "1/2-1/2"]
[ECO "D35"]
[WhiteElo "1960"]
[BlackElo "1827"]
[PlyCount "74"]
[EventDate "2018.08.??"]
[EventType "swiss"]
[EventRounds "9"]
[EventCountry "USA"]
[TimeControl "6000+10"]
[WhiteClock "0:01:50"]
[BlackClock "0:09:36"]

1. d4 {[%emt 0:00:10]} d5 2. c4 {[%emt 0:00:19]} e6 {[%emt 0:00:34]} 3. Nc3 {
[%emt 0:00:14]} Nf6 {[%emt 0:00:26]} 4. cxd5 {[%emt 0:00:18]} exd5 {[%emt 0:00:
10]} 5. Bg5 {[%emt 0:00:34]} Be7 {[%emt 0:00:10]} 6. e3 {[%emt 0:00:14]} c6 {
[%emt 0:01:21]} 7. Bd3 {[%emt 0:00:20]} O-O {[%emt 0:01:52]} 8. Qc2 {[%emt 0:
03:43]} Nbd7 {[%emt 0:01:35]} 9. Nge2 {[%emt 0:01:14]} b6 {[%emt 0:03:03]} 10.
O-O {[%emt 0:10:12]} Bb7 {[%emt 0:02:31]} 11. Rad1 {[%emt 0:03:29]} h6 {
[%emt 0:03:34]} 12. Bh4 {[%emt 0:01:01]} Rc8 {[%emt 0:01:50]} 13. f3 {[%emt 0:
02:32]} c5 {[%emt 0:04:47]} 14. dxc5 {[%emt 0:04:05]} Bxc5 {[%emt 0:02:52]} 15.
Nd4 {[%emt 0:12:20]} Re8 {[%emt 0:00:11]} 16. Rfe1 {[%emt 0:02:34]} a6 {
[%emt 0:10:39]} 17. Bh7+ {[%emt 0:10:31]} Kh8 {[%emt 0:01:25]} 18. Bf5 {
[%emt 0:00:30]} Rc7 {[%emt 0:01:52]} 19. Bg3 {[%emt 0:06:02]} Ne5 {[%emt 0:05:
36]} 20. Qb3 {[%emt 0:07:30]} Rce7 {[%emt 0:06:58]} 21. Bh4 {[%emt 0:06:19]}
Qd6 {[%emt 0:06:16]} 22. Bb1 {[%emt 0:05:45]} Bxd4 {[%emt 0:06:35]} 23. Rxd4 {
[%emt 0:02:58]} g5 {[%emt 0:02:34]} 24. Bg3 {[%emt 0:04:24]} Qe6 {[%emt 0:00:
10]} 25. Bxe5 {[%emt 0:02:05]} Qxe5 {[%emt 0:00:46]} 26. Qxb6 {[%emt 0:00:32]}
Kg7 {[%emt 0:06:23]} 27. Qb3 {[%emt 0:04:02]} h5 {[%emt 0:06:12]} 28. Qc2 {
[%emt 0:03:13]} g4 {[%emt 0:02:46]} 29. f4 {[%emt 0:06:50]} Qxd4 {[%emt 0:09:
39]} 30. exd4 {[%emt 0:00:25]} Rxe1+ {[%emt 0:00:10]} 31. Kf2 {[%emt 0:00:11]}
R8e3 {[%emt 0:00:12]} 32. g3 {[%emt 0:00:04]} Ne4+ {[%emt 0:00:45]} 33. Nxe4 {
[%emt 0:00:39]} Rxe4 {[%emt 0:00:19]} 34. Qd3 {[%emt 0:00:00]} Rh1 {[%emt 0:01:
46]} 35. Kg2 {[%emt 0:00:00]} Rhe1 {[%emt 0:00:21]} 36. Kf2 {[%emt 0:00:00]}
Rh1 {[%emt 0:00:10]} 37. Kg2 {[%emt 0:00:00]} Rhe1 {[%emt 0:00:14]} 1/2-1/2